{"text_format":"3","workbook":"xlsx","n_sheets":3,"sheets":["list01","list02","list03"],"read":"whole","date_system":"1900"}

{"sheet":"list01","index":0,"n_rows":26,"n_cols":9,"rows_kept":26,"merged":[[0,7,0,8],[1,1,1,8],[2,1,2,8],[3,1,3,8],[4,5,4,7],[5,1,5,7],[7,2,7,6],[9,2,9,6],[11,2,11,6],[13,2,13,6],[15,2,15,6],[17,1,17,6],[19,2,19,6],[21,2,21,6],[23,1,23,6],[25,6,25,7]]}
["lc=R27C10"]
[null,"Ўзбекистон Республикаси Молия вазирининг 2002 йил 27 декабрдаги 140-сонли буйруғига 2-сонли илова,\nЎзР АВ томонидан 2003 й. 24 январда рўйхатга олинган N 1209"]
[null,"Молиявий натижалар тўгрисида хисобот - 2-сонли шакл"]
[]
[null,null,2023,"йил",1,"чораги",null,null,"Коды "]
[null,"БхУТ бўйича 1-шакл"]
[null," "," "," "," "," "," "," "," "]
[null,"Корхона, ташкилот","АКЦИОНЕРНОЕ ОБЩЕСТВО \"O`ZINTERIMPEKS\"",{"$nulls":4},"КТУТ бўйича",2157450]
[{"$nulls":6}," ",null," "]
[null,"Тармоқ","Торговля",{"$nulls":4},"ХХТУТ бўйича",72100]
[{"$nulls":6}," ",null," "]
[null,"Ташкилий-ҳуқуқий шакли",{"$nulls":5},"ТхШТ бўйича",153]
[{"$nulls":6}," ",null," "]
[null,"Мулкчилик шакли","Коллективная",{"$nulls":4},"МШТ бўйича",100]
[{"$nulls":6}," ",null," "]
[null,"Вазирлик, идора ва бошқалар",{"$nulls":5},"ДБИБТ бўйича","03873"]
[{"$nulls":6}," ",null," "]
[null,"Солиқ тўловчининг идентификацион рақами",{"$nulls":5},"СТИР",200523324]
[{"$nulls":6}," ",null," "]
[null,"Ҳудуд","ТОШКЕНТ ШАҲАР МИРЗО УЛУҒБЕК тумани",{"$nulls":4},"МхОБТ",1730405]
[{"$nulls":6}," "]
[null,"Манзил","MUSTAQILLIK SHOX KO'CHASI., 59-UY",{"$nulls":4},"Жўнатилган сана","2023-04-25"]
[{"$nulls":6}," ",null," "]
[null,"Ўлчов бирлиги, минг сўм",{"$nulls":5},"қабул қилинган сана"]
[{"$nulls":7}," "," "]
[{"$nulls":6},"Такдим қилиш муддати",null,"2023-04-25"]

{"sheet":"list02","index":1,"n_rows":32,"n_cols":7,"rows_kept":32,"merged":[[1,1,1,3],[1,4,1,6],[2,1,3,1],[2,2,3,2],[2,3,2,4],[2,5,2,6]]}
["lc=R33C8"]
[null,"МОЛИЯВИЙ НАТИЖАЛАР ТУГРИСИДА ХИСОБОТ - 2-сонли шакл",null,null,"Ўлчов бирлиги, минг сўм"]
[null,"Кўрсаткичлар номи","Сатр коди","Ўтган йилнинг шу даврида",null,"Ҳисобот даврида"]
[{"$nulls":3},"Даромадлар\n(фойда)","Харажатлар\n(зарарлар)","Даромадлар\n(фойда)","Харажатлар\n(зарарлар)"]
[null,1,2,3,4,5,6]
[null,"Маҳсулот (товар, иш ва хизмат) ларни сотишдан соф тушум","010",null,"x",null,"x"]
[null,"Сотилган маҳсулот (товар, иш ва хизмат) ларнинг таннархи","020","x",null,"x"]
[null,"Маҳсулот (товар, иш ва хизмат) ларни сотишнинг ялпи фойдаси (зарари) (сатр.010-020)","030",{"$f":"+D6-E7","v":{"v":0,"d":"0.00"}},{"v":0,"d":"0.00"},{"$f":"+F6-G7","v":{"v":0,"d":"0.00"}},{"v":0,"d":"0.00"}]
[null,"Давр харажатлари, жами (сатр.050+060+070+080),шу жумладан:","040","x",{"$f":"+E10+E11+E12+E13","v":{"v":177710.5,"d":"177,710.50"}},"x",{"$f":"+G10+G11+G12+G13","v":{"v":900576.14,"d":"900,576.14"}}]
[null,"Сотиш харажатлари ","050","x",null,"x"]
[null,"Маъмурий харажатлар","060","x",{"v":135056.9,"d":"135,056.90"},"x",{"$f":"211042.7+15138.56+31887.29+184250+415000","v":{"v":857318.55,"d":"857,318.55"}}]
[null,"Бошқа операцион харажатлар ","070","x",{"v":42653.6,"d":"42,653.60"},"x",{"$f":"1989.89+30000+11267.7","v":{"v":43257.59,"d":"43,257.59"}}]
[null,"Ҳисобот даврининг солиқ солинадиган фойдадан келгусида чегириладиган харажатлари","080","x",null,"x"]
[null,"Асосий фаолиятнинг бошқа даромадлари","090",{"v":387900.5,"d":"387,900.50"},"x",{"v":905000,"d":"905,000.00"},"x"]
[null,"Асосий фаолиятнинг фойдаси (зарари) (сатр. 030-040+090)","100",{"$f":"+D8-E9+D14","v":{"v":210190,"d":"210,190.00"}},{"v":0,"d":"0.00"},{"$f":"+F8-G9+F14","v":{"v":4423.859999999986,"d":"4,423.86"}},{"v":0,"d":"0.00"}]
[null,"Молиявий фаолиятнинг даромадлари, жами (сатр.120+130+140+150+160), шу жумладан:","110",{"$f":"+D17+D18+D19+D20+D21","v":{"v":0,"d":"0.00"}},"x",{"$f":"+F17+F18+F19+F20+F21","v":{"v":0,"d":"0.00"}},"x"]
[null,"Дивидендлар шаклидаги даромадлар ","120",null,"x",null,"x"]
[null,"Фоизлар шаклидаги даромадлар","130",null,"x",null,"x"]
[null,"Молиявий ижарадан даромадлар","140",null,"x",null,"x"]
[null,"Валюта курси фарқидан даромадлар","150",null,"x",null,"x"]
[null,"Молиявий фаолиятнинг бошқа даромадлари","160",null,"x",null,"x"]
[null,"Молиявий фаолият бўйича харажатлар (сатр.180+190+200+210), шу жумладан:","170","x",{"$f":"+E23+E24+E25+E26","v":{"v":234850,"d":"234,850.00"}},"x",{"$f":"+G23+G24+G25+G26","v":{"v":0,"d":"0.00"}}]
[null,"Фоизлар шаклидаги харажатлар","180"]
[null,"Молиявий ижара бўйича фоизлар шаклидаги харажатлар","190","x",null,"x"]
[null,"Валюта курси фарқидан зарарлар","200","x",null,"x"]
[null,"Молиявий фаолият бўйича бошқа харажатлар","210","x",{"v":234850,"d":"234,850.00"},"x"]
[null,"Умумхўжалик фаолиятининг фойдаси (зарари) (сатр.100+110-170)","220",{"v":0,"d":"0.00"},{"$f":"+E22-D15","v":{"v":24660,"d":"24,660.00"}},{"$f":"+F15+F16-G22","v":{"v":4423.859999999986,"d":"4,423.86"}},{"v":0,"d":"0.00"}]
[null,"Фавқулоддаги фойда ва зарарлар","230"]
[null,"Фойда солиғини тўлагунга қадар фойда (зарар) (сатр.220+/-230)","240",{"$f":"+D27","v":{"v":0,"d":"0.00"}},{"$f":"+E27","v":{"v":24660,"d":"24,660.00"}},{"$f":"+F27","v":{"v":4423.859999999986,"d":"4,423.86"}},{"$f":"+G27","v":{"v":0,"d":"0.00"}}]
[null,"Фойда солиғи","250","x",null,"x",663.58]
[null,"Фойдадан бошқа солиқлар ва бошқа мажбурий тўловлар","260","x",null,"x"]
[null,"Ҳисобот даврининг соф фойдаси (зарари) (сатр.240-250-260)","270",{"v":0,"d":"0.00"},{"$f":"+E29","v":{"v":24660,"d":"24,660.00"}},{"$f":"+F29-G30-G31","v":{"v":3760.279999999986,"d":"3,760.28"}},{"v":0,"d":"0.00"}]

{"sheet":"list03","index":2,"n_rows":27,"n_cols":5,"rows_kept":27,"merged":[[0,1,0,4],[1,1,1,4],[2,2,2,4]]}
["lc=R27C6"]
[null,"БЮДЖЕТГА ТЎЛОВЛАР ТЎҒРИСИДА МАЪЛУМОТ"]
[null,null,"Ўлчов бирлиги, минг сўм"]
[null,"Кўрсаткичлар номи","Сатр коди","Ҳисобот даври учун ҳисоб-китоб бўйича тўланади","Ҳисобот даври учун ҳисоб-китоб бўйича ҳисоблангандан ҳақиқатда тўлангани"]
[null,"Юридик шахслардан олинадиган фойда солиғи","280",663.58,663.58]
[null,"Жисмоний шахслардан олинадиган даромад солиғи","290",{"v":22611.72,"d":"22,611.72"},{"v":22611.72,"d":"22,611.72"}]
[null,"шу жумладан:шахсий жамғариб бориладиган пенсия ҳисобварақларига ажратмалар","291",188.43,188.43]
[null,"Ободонлаштириш ва ижтимоий инфратузилмани ривожлантириш солиғи","300"]
[null,"Қўшилган қиймат солиғи","310"]
[null,"Акциз солиғи","320"]
[null,"Ер ости бойликларидан фойдаланганлик учун солиқ","330"]
[null,"Сув ресурсларидан фойдаланганлик учун солиқ","340"]
[null,"Юридик шахсларнинг мол-мулкига солинадиган солиқ","350",{"v":15138.56,"d":"15,138.56"},{"v":15138.56,"d":"15,138.56"}]
[null,"Юридик шахслардан олинадиган ер солиғи","360",{"v":31887.29,"d":"31,887.29"},{"v":31887.29,"d":"31,887.29"}]
[null,"Ягона солиқ тўлови","370",{"v":22611.72,"d":"22,611.72"},{"v":22611.72,"d":"22,611.72"}]
[null,"Ягона ер солиғи","380"]
[null,"Қатъий белгиланган солиқ","390"]
[null,"Бошқа солиқлар","400"]
[null,"Республика йўл жамғармасига мажбурий ажратмалар","410"]
[null,"Бюджетдан ташқари Пенсия жамғармасига мажбурий ажратмалар","420"]
[null,"Бюджетдан ташқари Умумтаълим мактаблари, касб-ҳунар коллежлари, академик лицейлар ва тиббиёт муассасаларини реконструкция қилиш, мукаммал таъмирлаш ва жиҳозлаш жамғармасига мажбурий ажратмалар","430"]
[null,"Ягона ижтимоий тўлов ва фуқароларнинг бюджетдан ташқари Пенсия жамғармасига\nсуғурта бадаллари ","440"]
[null,"Импорт бўйича божхона божи","450"]
[null,"Маҳаллий бюджетга йиғимлар","460"]
[null,"Бюджетга тўловларнинг кечиктирилганлиги учун молиявий жазолар","470"]
[null,"Жами бюджетга тўловлар суммаси (280 дан 470 сатргача 291 сатрдан ташқари)","480",{"$f":"+D5+D6+D8+D9+D10+D11+D12+D13+D14+D15+D16+D17+D18+D19+D20+D21+D22+D23+D24+D25","v":{"v":92912.87,"d":"92,912.87"}},{"$f":"+E5+E6+E8+E9+E10+E11+E12+E13+E14+E15+E16+E17+E18+E19+E20+E21+E22+E23+E24+E25","v":{"v":92912.87,"d":"92,912.87"}}]
[null,null,""]